fUST/lending_fUST_20250831
["ID","MTS","AMOUNT","RATE_DAILY","PERIOD"]
[382472244,1756639846251,-628.28109214,0.00017729,2]
[382472245,1756639846261,-480.0,0.00017729,2]
[382472246,1756639846269,-428.70427262,0.00017729,2]
[382472247,1756639846279,-480.0,0.00017729,2]
[382472248,1756639846288,-501.15,0.00017729,2]
[382472249,1756639846298,-487.95163791,0.00017729,2]
[382472250,1756639846307,-480.0,0.00017729,2]
[382472251,1756639846316,-480.0,0.00017729,2]
[382472252,1756639846325,-715.88,0.00017729,2]
[382472253,1756639846334,-481.07907518,0.0001773,2]
[382472254,1756639846471,-480.0,0.0001773,2]
[382472255,1756639846501,-603.54817478,0.0001773,2]
[382472256,1756639846510,-480.0,0.0001773,2]
[382472257,1756639846520,-480.66036303,0.0001773,2]
[382472258,1756639846529,-723.8,0.0001773,2]
[382472259,1756639846539,-480.0,0.0001773,2]
[382472260,1756639846548,-1696.18,0.0001773,2]
[382472261,1756639846558,-624.76,0.0001773,2]
[382472262,1756639846567,-620.5,0.0001773,2]
[382472263,1756639846576,-518.21017361,0.0001773,2]
[382472264,1756639846586,-480.0,0.0001773,2]
[382472265,1756639846595,-480.0,0.0001773,2]
[382472266,1756639846604,-480.0,0.0001773,2]
[382472267,1756639846614,-480.0,0.0001773,2]
[382472268,1756639846623,-480.00000001,0.0001773,2]
[382472269,1756639846632,-910.94,0.0001773,2]
[382472270,1756639846643,-591.58,0.0001773,2]
[382472271,1756639846653,-480.0,0.0001773,2]
[382472272,1756639846664,-526.08976141,0.0001773,2]
[382472273,1756639846674,-480.0,0.0001773,2]
[382472274,1756639846684,-480.0,0.0001773,2]
[382472275,1756639846695,-480.0,0.0001773,2]
[382472276,1756639846704,-705.65,0.0001773,2]
[382472277,1756639846714,-480.0,0.0001773,2]
[382472278,1756639846723,-480.0,0.0001773,2]
[382472279,1756639846735,-303.32377065,0.0001773,2]
[382472280,1756639846745,-480.0,0.0001773,2]
[382472281,1756639846754,-480.0,0.0001773,2]
[382472282,1756639846764,-480.0,0.0001773,2]
[382472283,1756639846773,-642.22,0.0001773,2]
[382472284,1756639846783,-480.0,0.0001773,2]
[382472285,1756639846792,-261.0,0.00017748,2]
[382472286,1756639846802,-391.0,0.00017769,2]
[382472287,1756639846811,-480.0,0.00017799,2]
[382472288,1756639846821,-1100.98,0.00017799,2]
[382472289,1756639846830,-1504.12,0.00017799,2]
[382472290,1756639846840,-1405.73,0.00017799,2]
[382472292,1756639846850,-3273.95,0.00017799,2]
[382472294,1756639846859,-3811.81,0.00017799,2]
[382472296,1756639846869,-253.75978591,0.00017799,2]
[382472298,1756639846879,-480.0,0.00017799,2]
[382472299,1756639846888,-736.2,0.00017799,2]
[382472301,1756639846898,-480.0,0.00017799,2]
[382472302,1756639846907,-1377.53,0.00017799,2]
[382472303,1756639846917,-1585.84,0.00017799,2]
[382472304,1756639846926,-480.0,0.00017799,2]
[382472305,1756639846936,-151.0,0.000178,2]
[382472306,1756639846946,-151.0,0.000178,2]
[382472308,1756639846955,-151.0,0.000178,2]
[382472309,1756639846964,-151.0,0.000178,2]
[382472312,1756639846974,-480.0,0.000178,2]
[382472314,1756639846983,-480.0,0.000178,2]
[382472315,1756639846993,-480.0,0.000178,2]
[382472318,1756639847003,-4499.38,0.000178,2]
[382472320,1756639847012,-676.18,0.000178,2]
[382472322,1756639847022,-480.0,0.000178,2]
[382472324,1756639847031,-480.0,0.000178,2]
[382472325,1756639847041,-1216.24,0.000178,2]
[382472328,1756639847051,-1963.57,0.000178,2]
[382472329,1756639847060,-1068.3,0.000178,2]
[382472331,1756639847070,-1570.05,0.000178,2]
[382472333,1756639847079,-700.37,0.000178,2]
[382472336,1756639847089,-484.04,0.000178,2]
[382472337,1756639847098,-1552.87,0.000178,2]
[382472340,1756639847108,-1598.4,0.000178,2]
[382472342,1756639847117,-6508.66,0.000178,2]
[382472344,1756639847128,-1612.64,0.000178,2]
[382472346,1756639847137,-777.08,0.000178,2]
[382472348,1756639847147,-480.0,0.000178,2]
[382472349,1756639847156,-436.19576782,0.000178,2]
[382472351,1756639847166,-3156.11,0.000178,2]
[382472354,1756639847178,-480.0,0.000178,2]
[382472356,1756639847188,-1395.91,0.000178,2]
[382472357,1756639847197,-571.37089005,0.00017801,2]
[382472359,1756639847207,-198.0,0.00017801,2]
[382472362,1756639847216,-619.28300412,0.00017801,2]
[382472364,1756639847227,-500.0,0.00017801,2]
[382472366,1756639847237,-151.0,0.00017801,2]
[382472367,1756639847247,-1542.0,0.00017801,2]
[382472368,1756639847257,-500.0,0.00017801,2]
[382472369,1756639847266,-500.0,0.00017801,2]
[382472370,1756639847275,-500.0,0.00017801,2]
[382472371,1756639847284,-151.0,0.00017801,2]
[382472372,1756639847294,-500.0,0.00017801,2]
[382472373,1756639847303,-500.0,0.00017801,2]
[382472374,1756639847313,-151.0,0.00017801,2]
[382472375,1756639847322,-500.0,0.00017801,2]
[382472376,1756639847331,-480.0,0.00017801,2]
[382472377,1756639847340,-480.0,0.00017801,2]
[382472378,1756639847350,-567.65,0.00017801,2]
[382472379,1756639847360,-480.0,0.00017801,2]
[382472380,1756639847369,-951.71,0.00017801,2]
[382472381,1756639847380,-2293.58,0.00017801,2]
[382472382,1756639847389,-762.83,0.00017801,2]
[382472383,1756639847400,-480.0,0.00017801,2]
[382472384,1756639847409,-480.0,0.00017801,2]
[382472385,1756639847418,-480.0,0.00017801,2]
[382472386,1756639847428,-1336.81,0.00017801,2]
[382472387,1756639847438,-1733.31,0.00017801,2]
[382472388,1756639847447,-574.82,0.00017801,2]
[382472389,1756639847457,-1802.98,0.00017801,2]
[382472390,1756639847467,-1419.27,0.00017801,2]
[382472391,1756639847476,-480.0,0.00017801,2]
[382472392,1756639847486,-151.0,0.00017801,2]
[382472393,1756639847495,-227.27386968,0.00017801,2]
[382472394,1756639847504,-847.45,0.00017801,2]
[382472395,1756639847513,-846.82,0.00017801,2]
[382472396,1756639847523,-151.0,0.00017801,2]
[382472397,1756639847533,-810.03,0.00017801,2]
[382472398,1756639847542,-151.0,0.00017801,2]
[382472399,1756639847551,-526.81,0.00017801,2]
[382472400,1756639847561,-151.0,0.00017801,2]
[382472401,1756639847570,-480.0,0.00017801,2]
[382472402,1756639847580,-151.0,0.00017801,2]
[382472403,1756639847590,-500.0,0.00017801,2]
[382472404,1756639847600,-1027.81,0.00017801,2]
[382472405,1756639847609,-1280.68,0.00017801,2]
[382472406,1756639847619,-5203.96,0.00017801,2]
[382472407,1756639847629,-151.0,0.00017801,2]
[382472408,1756639847638,-4374.32,0.00017801,2]
[382472409,1756639847648,-151.0,0.00017801,2]
[382472410,1756639847658,-480.0,0.00017801,2]
[382472411,1756639847668,-174.328887,0.00017801,2]
[382472412,1756639847681,-169.664587,0.00017801,2]
[382472413,1756639847691,-151.0,0.00017801,2]
[382472414,1756639847700,-621.02,0.00017801,2]
[382472415,1756639847711,-1725.03,0.00017801,2]
[382472416,1756639847720,-846.27,0.00017801,2]
[382472417,1756639847729,-151.0,0.00017801,2]
[382472418,1756639847739,-945.67,0.00017801,2]
[382472419,1756639847752,-151.0,0.00017801,2]
[382472420,1756639847762,-1313.76,0.00017801,2]
[382472421,1756639847771,-480.0,0.00017801,2]
[382472422,1756639847780,-528.09,0.00017801,2]
[382472423,1756639847790,-1326.51,0.00017801,2]
[382472424,1756639847799,-899.63,0.00017801,2]
[382472425,1756639847809,-480.0,0.00017801,2]
[382472426,1756639847818,-1326.69,0.00017801,2]
[382472427,1756639847827,-891.65,0.00017801,2]
[382472428,1756639847836,-151.0,0.00017801,2]
[382472429,1756639847846,-151.0,0.00017801,2]
[382472430,1756639847855,-151.0,0.00017801,2]
[382472431,1756639847865,-480.0,0.00017801,2]
[382472432,1756639847875,-1303.78,0.00017801,2]
[382472433,1756639847884,-2204.94,0.00017801,2]
[382472434,1756639847894,-151.0,0.00017801,2]
[382472435,1756639847903,-1817.44,0.00017801,2]
[382472436,1756639847913,-581.79,0.00017801,2]
[382472437,1756639847923,-732.42,0.00017801,2]
[382472438,1756639847932,-480.0,0.00017801,2]
[382472439,1756639847942,-480.0,0.00017801,2]
[382472440,1756639847952,-2457.6,0.00017801,2]
[382472441,1756639847961,-1585.47,0.00017801,2]
[382472442,1756639847970,-480.0,0.00017801,2]
[382472443,1756639847979,-1603.07,0.00017801,2]
[382472444,1756639847988,-151.0,0.00017801,2]
[382472445,1756639847998,-2156.65,0.00017801,2]
[382472446,1756639848007,-2823.29,0.00017801,2]
[382472447,1756639848017,-480.0,0.00017801,2]
[382472448,1756639848026,-961.83,0.00017801,2]
[382472449,1756639848036,-520.71,0.00017801,2]
[382472450,1756639848046,-875.66,0.00017801,2]
[382472451,1756639848055,-511.51,0.00017801,2]
[382472452,1756639848064,-896.05,0.00017801,2]
[382472453,1756639848074,-151.0,0.00017801,2]
[382472454,1756639848083,-2047.87,0.00017801,2]
[382472455,1756639848093,-151.0,0.00017801,2]
[382472456,1756639848102,-1317.44,0.00017801,2]
[382472457,1756639848111,-151.0,0.00017801,2]
[382472458,1756639848121,-151.0,0.00017801,2]
[382472459,1756639848131,-1636.71,0.00017801,2]
[382472460,1756639848140,-151.343345,0.00017801,2]
[382472461,1756639848150,-555.76,0.00017801,2]
[382472462,1756639848159,-480.0,0.00017801,2]
[382472463,1756639848168,-480.0,0.00017801,2]
[382472464,1756639848177,-151.0,0.00017801,2]
[382472465,1756639848187,-151.0,0.00017801,2]
[382472466,1756639848196,-965.47,0.00017801,2]
[382472467,1756639848206,-151.0,0.00017801,2]
[382472468,1756639848215,-151.0,0.00017801,2]
[382472469,1756639848225,-887.38,0.00017801,2]
[382472470,1756639848234,-151.0,0.00017801,2]
[382472471,1756639848244,-151.0,0.00017801,2]
[382472472,1756639848253,-151.0,0.00017801,2]
[382472473,1756639848262,-151.158634,0.00017801,2]
[382472474,1756639848272,-1940.32,0.00017801,2]
[382472475,1756639848282,-809.39,0.00017801,2]
[382472476,1756639848292,-151.55384,0.00017801,2]
[382472477,1756639848302,-646.75,0.00017801,2]
[382472478,1756639848311,-1843.78,0.00017801,2]
[382472479,1756639848320,-185.876676,0.00017801,2]
[382472480,1756639848330,-185.876676,0.00017801,2]
[382472481,1756639848339,-185.876676,0.00017801,2]
[382472482,1756639848350,-1171.4,0.00017801,2]
[382472483,1756639848359,-185.876676,0.00017801,2]
[382472484,1756639848369,-184.038744,0.00017801,2]
[382472485,1756639848380,-156.946248,0.00017801,2]
[382472486,1756639848390,-156.946248,0.00017801,2]
[382472487,1756639848400,-151.0,0.00017801,2]
[382472488,1756639848410,-156.946248,0.00017801,2]
[382472489,1756639848420,-156.167908,0.00017801,2]
[382472490,1756639848429,-480.0,0.00017801,2]
[382472491,1756639848439,-156.946248,0.00017801,2]
[382472492,1756639848449,-480.0,0.00017801,2]
[382472493,1756639848459,-619.536546,0.00017801,2]
[382472494,1756639848468,-151.0,0.00017801,2]
[382472495,1756639848478,-151.0,0.00017801,2]
[382472496,1756639848487,-151.0,0.00017801,2]
[382472497,1756639848497,-619.536546,0.00017801,2]
[382472498,1756639848506,-178.660336,0.00017801,2]
[382472499,1756639848515,-151.0,0.00017801,2]
[382472500,1756639848524,-619.536546,0.00017801,2]
[382472501,1756639848533,-855.65,0.00017801,2]
[382472502,1756639848542,-554.55,0.00017801,2]
[382472503,1756639848550,-619.536546,0.00017801,2]
[382472504,1756639848560,-1000.0,0.00017801,2]
[382472505,1756639848570,-500.0,0.00017802,2]
[382472506,1756639848579,-480.0,0.00017802,2]
[382472507,1756639848588,-480.0,0.00017802,2]
[382472508,1756639848597,-480.0,0.00017802,2]
[382472509,1756639848607,-480.0,0.00017802,2]
[382472510,1756639848616,-480.0,0.00017802,2]
[382472511,1756639848626,-481.9284001,0.00017802,2]
[382472512,1756639848635,-480.0,0.00017802,2]
[382472513,1756639848644,-480.0,0.00017802,2]
[382472514,1756639848653,-574.16,0.00017802,2]
[382472515,1756639848662,-480.0,0.00017802,2]
[382472516,1756639848675,-480.0,0.00017802,2]
[382472517,1756639848684,-480.0,0.00017802,2]
[382472518,1756639848695,-480.0,0.00017802,2]
[382472519,1756639848704,-480.0,0.00017802,2]
[382472520,1756639848714,-571.58,0.00017802,2]
[382472521,1756639848724,-480.0,0.00017802,2]
[382472522,1756639848734,-480.0,0.00017802,2]
[382472523,1756639848745,-480.0,0.00017802,2]
[382472524,1756639848755,-480.0,0.00017802,2]
[382472525,1756639848764,-480.0,0.00017802,2]
[382472526,1756639848774,-481.90214128,0.00017802,2]
[382472527,1756639848784,-1194.17,0.00017802,2]
[382472528,1756639848793,-829.2,0.00017802,2]
[382472529,1756639848803,-480.0,0.00017802,2]
[382472530,1756639848813,-518.63693586,0.00017802,2]
[382472531,1756639848822,-480.0,0.00017802,2]
[382472532,1756639848832,-480.0,0.00017802,2]
[382472533,1756639848842,-610.71,0.00017802,2]
[382472534,1756639848851,-480.0,0.00017802,2]
[382472535,1756639848861,-480.0,0.00017802,2]
[382472536,1756639848870,-871.46,0.00017802,2]
[382472537,1756639848880,-480.0,0.00017802,2]
[382472538,1756639848890,-482.32,0.00017802,2]
[382472539,1756639848900,-480.0,0.00017802,2]
[382472540,1756639848909,-480.0,0.00017802,2]
[382472541,1756639848919,-957.25,0.00017802,2]
[382472542,1756639848928,-549.82,0.00017802,2]
[382472543,1756639848937,-437.20846435,0.00017802,2]
[382472544,1756639848947,-1032.08,0.00017802,2]
[382472545,1756639848957,-1278.6,0.00017802,2]
[382472546,1756639848967,-793.35,0.00017802,2]
[382472547,1756639848976,-480.0,0.00017802,2]
[382472548,1756639848986,-1247.13,0.00017802,2]
[382472549,1756639848995,-480.0,0.00017802,2]
[382472550,1756639849004,-480.0,0.00017802,2]
[382472551,1756639849015,-480.0,0.00017802,2]
[382472552,1756639849024,-480.0,0.00017802,2]
[382472553,1756639849033,-229.42569304,0.00017802,2]
[382472554,1756639849042,-480.0,0.00017802,2]
[382472555,1756639849051,-480.0,0.00017802,2]
[382472556,1756639849061,-569.85,0.00017802,2]
[382472557,1756639849070,-480.0,0.00017802,2]
[382472558,1756639849079,-551.65,0.00017802,2]
[382472559,1756639849088,-151.0,0.00017802,2]
[382472560,1756639849098,-151.0,0.00017802,2]
[382472561,1756639849108,-480.0,0.00017802,2]
[382472562,1756639849118,-151.0,0.00017802,2]
[382472563,1756639849135,-151.0,0.00017802,2]
[382472564,1756639849146,-151.0,0.00017802,2]
[382472565,1756639849156,-278.00664309,0.00017802,2]
[382472566,1756639849166,-151.0,0.00017802,2]
[382472567,1756639849175,-151.0,0.00017802,2]
[382472568,1756639849184,-151.0,0.00017802,2]
[382472569,1756639849194,-480.0,0.00017802,2]
[382472570,1756639849203,-151.0,0.00017802,2]
[382472571,1756639849213,-480.0,0.00017802,2]
[382472572,1756639849362,-480.0,0.00017802,2]
[382472573,1756639849372,-151.0,0.00017802,2]
[382472574,1756639849382,-151.0,0.00017802,2]
[382472575,1756639849392,-1282.96,0.00017802,2]
[382472576,1756639849403,-480.0,0.00017802,2]
[382472577,1756639849412,-151.0,0.00017802,2]
[382472578,1756639849422,-480.0,0.00017802,2]
[382472579,1756639849432,-481.92102351,0.00017802,2]
[382472580,1756639849441,-480.0,0.00017802,2]
[382472581,1756639849451,-151.0,0.00017802,2]
[382472582,1756639849460,-151.0,0.00017802,2]
[382472583,1756639849469,-480.0,0.00017802,2]
[382472584,1756639849479,-154.702727,0.00017802,2]
[382472585,1756639849489,-480.0,0.00017802,2]
[382472586,1756639849498,-298.80298951,0.00017802,2]
[382472587,1756639849508,-480.0,0.00017802,2]
[382472588,1756639849518,-151.0,0.00017802,2]
[382472589,1756639849527,-495.7,0.00017802,2]
[382472590,1756639849537,-480.0,0.00017802,2]
[382472591,1756639849546,-270.445229,0.00017802,2]
[382472592,1756639849555,-151.0,0.00017802,2]
[382472593,1756639849565,-480.0,0.00017802,2]
[382472594,1756639849574,-480.0,0.00017802,2]
[382472595,1756639849584,-506.66,0.00017802,2]
[382472596,1756639849593,-480.0,0.00017802,2]
[382472597,1756639849603,-480.0,0.00017802,2]
[382472598,1756639849613,-480.0,0.00017802,2]
[382472599,1756639849622,-665.04,0.00017802,2]
[382472600,1756639849632,-480.0,0.00017802,2]
[382472601,1756639849642,-480.0,0.00017802,2]
[382472602,1756639849652,-576.54,0.00017802,2]
[382472603,1756639849662,-480.0,0.00017802,2]
[382472604,1756639849676,-480.0,0.00017802,2]
[382472605,1756639849686,-719.21,0.00017802,2]
[382472606,1756639849695,-247.99788616,0.00017802,2]
[382472607,1756639849704,-480.0,0.00017802,2]
[382472608,1756639849713,-566.36,0.00017802,2]
[382472609,1756639849723,-480.0,0.00017802,2]
[382472610,1756639849733,-480.0,0.00017802,2]
[382472611,1756639849743,-729.36,0.00017802,2]
[382472612,1756639849753,-480.0,0.00017802,2]
[382472613,1756639849762,-480.0,0.00017802,2]
[382472614,1756639849772,-480.0,0.00017802,2]
[382472615,1756639849782,-480.0,0.00017802,2]
[382472616,1756639849793,-480.0,0.00017802,2]
[382472617,1756639849803,-1513.89,0.00017802,2]
[382472618,1756639849812,-1959.04,0.00017802,2]
[382472619,1756639849822,-480.0,0.00017802,2]
[382472620,1756639849832,-1782.93,0.00017802,2]
[382472621,1756639849841,-906.98,0.00017802,2]
[382472622,1756639849851,-480.0,0.00017802,2]
[382472623,1756639849860,-480.0,0.00017802,2]
[382472624,1756639849870,-480.0,0.00017802,2]
[382472625,1756639849880,-480.0,0.00017802,2]
[382472626,1756639849889,-599.79,0.00017802,2]
[382472627,1756639849898,-480.0,0.00017802,2]
[382472628,1756639849908,-1869.57,0.00017802,2]
[382472629,1756639849918,-485.31157402,0.00017802,2]
[382472630,1756639849927,-480.0,0.00017802,2]
[382472631,1756639849936,-2153.77,0.00017802,2]
[382472632,1756639849945,-738.36,0.00017802,2]
[382472633,1756639849955,-480.0,0.00017802,2]
[382472634,1756639849964,-512.56,0.00017802,2]
[382472635,1756639849973,-480.0,0.00017802,2]
[382472636,1756639849983,-1572.18,0.00017802,2]
[382472637,1756639849992,-480.0,0.00017802,2]
[382472638,1756639850001,-484.91050785,0.00017802,2]
[382472639,1756639850011,-480.0,0.00017802,2]
[382472640,1756639850021,-1225.05,0.00017802,2]
[382472641,1756639850030,-7621.64,0.00017802,2]
[382472642,1756639850040,-12905.7,0.00017802,2]
[382472643,1756639850050,-1485.55,0.00017802,2]
[382472644,1756639850060,-480.0,0.00017802,2]
[382472645,1756639850077,-535.44,0.00017802,2]
[382472646,1756639850087,-2770.45,0.00017802,2]
[382472647,1756639850096,-3702.65,0.00017802,2]
[382472648,1756639850105,-1794.98,0.00017802,2]
[382472649,1756639850114,-737.04,0.00017802,2]
[382472650,1756639850123,-480.0,0.00017802,2]
[382472651,1756639850134,-768.31,0.00017802,2]
[382472652,1756639850144,-480.0,0.00017802,2]
[382472653,1756639850153,-480.0,0.00017802,2]
[382472654,1756639850164,-1881.33,0.00017802,2]
[382472655,1756639850173,-858.19,0.00017802,2]
[382472656,1756639850183,-501.86,0.00017802,2]
[382472657,1756639850192,-9809.04,0.00017802,2]
[382472658,1756639850201,-673.45,0.00017802,2]
[382472659,1756639850211,-674.79,0.00017802,2]
[382472660,1756639850220,-480.0,0.00017802,2]
[382472661,1756639850229,-480.0,0.00017802,2]
[382472662,1756639850238,-9350.55,0.00017802,2]
[382472663,1756639850248,-480.32030878,0.00017802,2]
[382472664,1756639850257,-480.94,0.00017802,2]
[382472665,1756639850267,-480.0,0.00017802,2]
[382472666,1756639850276,-481.09469984,0.00017802,2]
[382472667,1756639850285,-480.0,0.00017802,2]
[382472668,1756639850295,-4682.5,0.00017802,2]
[382472669,1756639850304,-13704.06711517,0.00017804,2]
[382472670,1756639850314,-261.0,0.00017822,2]
[382472671,1756639850324,-242.0,0.00017831,2]
[382472672,1756639850333,-500.0,0.0001787,2]
[382472673,1756639850342,-261.0,0.00017888,2]
[382472674,1756639850351,-151.0,0.000179,2]
[382472675,1756639850361,-151.0,0.000179,2]
[382472676,1756639850370,-151.0,0.000179,2]
[382472677,1756639850380,-159.226158,0.000179,2]
[382472678,1756639850389,-151.0,0.000179,2]
[382472679,1756639850399,-287.782845,0.000179,2]
[382472680,1756639850408,-151.0,0.000179,2]
[382472681,1756639850418,-151.0,0.000179,2]
[382472682,1756639850427,-151.0,0.000179,2]
[382472683,1756639850437,-151.0,0.000179,2]
[382472684,1756639850446,-533.25,0.000179,2]
[382472685,1756639850455,-6863.46,0.000179,2]
[382472686,1756639850464,-1243.99,0.000179,2]
[382472687,1756639850474,-2273.44,0.000179,2]
[382472688,1756639850483,-151.0,0.000179,2]
[382472689,1756639850492,-151.0,0.000179,2]
[382472690,1756639850502,-2385.19,0.000179,2]
[382472691,1756639850511,-480.0,0.000179,2]
[382472692,1756639850521,-882.2,0.000179,2]
[382472693,1756639850530,-2155.02,0.000179,2]
[382472694,1756639850540,-151.0,0.000179,2]
[382472695,1756639850549,-4607.93,0.000179,2]
[382472696,1756639850558,-1473.14,0.000179,2]
[382472697,1756639850567,-151.0,0.000179,2]
[382472698,1756639850576,-480.0,0.000179,2]
[382472699,1756639850586,-2642.58,0.000179,2]
[382472700,1756639850595,-1092.28,0.000179,2]
[382472701,1756639850604,-500.0,0.00017901,2]
[382472702,1756639850614,-151.0,0.00017901,2]
[382472703,1756639850623,-239.35076144,0.00017901,2]
[382472704,1756639850632,-151.0,0.00017901,2]
[382472705,1756639850642,-480.0,0.00017901,2]
[382472706,1756639850652,-480.0,0.00017901,2]
[382472707,1756639850662,-1550.12,0.00017901,2]
[382472708,1756639850676,-923.58,0.00017901,2]
[382472709,1756639850685,-480.0,0.00017901,2]
[382472710,1756639850694,-496.53,0.00017901,2]
[382472711,1756639850704,-480.0,0.00017901,2]
[382472712,1756639850714,-1041.77,0.00017901,2]
[382472713,1756639850723,-1297.72,0.00017901,2]
[382472714,1756639850732,-778.0,0.00017901,2]
[382472715,1756639850742,-480.0,0.00017901,2]
[382472716,1756639850751,-413.3736342,0.00017901,2]
[382472717,1756639850760,-2071.86,0.00017901,2]
[382472718,1756639850769,-480.0,0.00017901,2]
[382472719,1756639850779,-480.0,0.00017901,2]
[382472720,1756639850788,-650.9,0.00017901,2]
[382472721,1756639850798,-601.76,0.00017901,2]
[382472722,1756639850807,-723.21,0.00017901,2]
[382472723,1756639850817,-481.5065541,0.00017901,2]
[382472724,1756639850827,-546.59,0.00017901,2]
[382472725,1756639850836,-1949.26,0.00017901,2]
[382472726,1756639850845,-1578.77,0.00017901,2]
[382472727,1756639850854,-480.0,0.00017901,2]
[382472728,1756639850864,-480.0,0.00017901,2]
[382472729,1756639850873,-480.0,0.00017901,2]
[382472730,1756639850882,-1693.91,0.00017901,2]
[382472731,1756639850892,-480.0,0.00017901,2]
[382472732,1756639850902,-1562.44,0.00017901,2]
[382472733,1756639850911,-480.0,0.00017901,2]
[382472734,1756639850923,-480.0,0.00017901,2]
[382472735,1756639850932,-480.0,0.00017901,2]
[382472736,1756639850941,-480.0,0.00017901,2]
[382472737,1756639850951,-151.0,0.00017901,2]
[382472738,1756639850960,-638.49,0.00017901,2]
[382472739,1756639850969,-887.51,0.00017901,2]
[382472740,1756639850979,-266.07364189,0.00017901,2]
[382472741,1756639850988,-480.0,0.00017901,2]
[382472742,1756639850997,-847.23,0.00017901,2]
[382472743,1756639851006,-480.0,0.00017901,2]
[382472744,1756639851015,-151.0,0.00017901,2]
[382472745,1756639851025,-160.424535,0.00017901,2]
[382472746,1756639851034,-822.0,0.00017901,2]
[382472747,1756639851043,-151.0,0.00017901,2]
[382472748,1756639851053,-721.32,0.00017901,2]
[382472749,1756639851062,-167.076088,0.00017901,2]
[382472750,1756639851072,-1464.13,0.00017901,2]
[382472751,1756639851081,-1569.43,0.00017901,2]
[382472752,1756639851090,-151.0,0.00017901,2]
[382472753,1756639851100,-151.0,0.00017901,2]
[382472754,1756639851109,-151.0,0.00017901,2]
[382472755,1756639851118,-547.59,0.00017901,2]
[382472756,1756639851128,-480.0,0.00017901,2]
[382472757,1756639851138,-1455.08,0.00017901,2]
[382472758,1756639851151,-567.49,0.00017901,2]
[382472759,1756639851160,-151.0,0.00017901,2]
[382472760,1756639851170,-151.0,0.00017901,2]
[382472761,1756639851179,-480.0,0.00017901,2]
[382472762,1756639851189,-1815.96,0.00017901,2]
[382472763,1756639851198,-1603.31,0.00017901,2]
[382472764,1756639851208,-480.0,0.00017901,2]
[382472765,1756639851218,-1973.57,0.00017901,2]
[382472766,1756639851227,-706.43,0.00017901,2]
[382472767,1756639851236,-151.0,0.00017901,2]
[382472768,1756639851245,-151.0,0.00017901,2]
[382472769,1756639851255,-293.103662,0.00017901,2]
[382472770,1756639851264,-480.0,0.00017901,2]
[382472771,1756639851273,-480.0,0.00017901,2]
[382472772,1756639851283,-151.0,0.00017901,2]
[382472773,1756639851292,-151.0,0.00017901,2]
[382472774,1756639851301,-500.74,0.00017901,2]
[382472775,1756639851310,-151.0,0.00017901,2]
[382472776,1756639851320,-260.86270022,0.00017901,2]
[382472777,1756639851330,-480.0,0.00017901,2]
[382472778,1756639851339,-504.98,0.00017901,2]